bitfinex-derivatives/quotes_SOLF0:USTF0_20230701
["timestamp","ask_amount","ask_price","bid_price","bid_amount"]
[1688221971814,0.02254778,18.483,18.482,68.43]
[1688221975816,0.02254778,18.483,18.481,68.43]
[1688221976017,0.02254778,18.483,18.48,0.80538087]
[1688221977220,68.47,18.482,18.475,68.08]
[1688221977432,68.47,18.479,18.473,68.43]
[1688221978223,0.76888549,18.478,18.474,0.84993125]
[1688221979320,0.76888549,18.478,18.475,68.08]
[1688221980433,68.47,18.485,18.477,68.43]
[1688221980631,68.47,18.487,18.481,68.43]
[1688221980929,75.94,18.49,18.479,76.07]
[1688221981630,0.85545273,18.486,18.483,0.79878961]
[1688221988624,0.85545273,18.486,18.485,76.07]
[1688221998833,0.85545273,18.486,18.485,103.11895]
[1688222000036,0.85545273,18.486,18.485,76.07]
[1688222004944,0.85545273,18.486,18.483,103.48374389]
[1688222008846,0.85545273,18.486,18.485,76.07]
[1688222012847,0.85545273,18.486,18.483,131.11562389]
[1688222014547,0.85545273,18.486,18.484,27.05042]
[1688222016551,0.85545273,18.486,18.485,275.64]
[1688222016854,0.85545273,18.486,18.485,285.57149725]
[1688222017053,0.85545273,18.486,18.485,85.57149725]
[1688222017453,0.85545273,18.486,18.485,112.62044725]
[1688222017946,0.85545273,18.486,18.485,312.62044725]
[1688222018748,0.85545273,18.486,18.485,302.68895]
[1688222020754,0.85545273,18.486,18.485,112.62051702]
[1688222020947,0.85545273,18.486,18.485,302.68895]
[1688222021344,0.85545273,18.486,18.485,102.68895]
[1688222021554,0.85545273,18.486,18.485,27.04895]
[1688222021744,0.85545273,18.486,18.483,27.99374389]
[1688222023249,0.85545273,18.486,18.484,27.05042]
[1688222023448,0.85545273,18.486,18.484,102.69042]
[1688222027849,0.85545273,18.486,18.483,27.99374389]
[1688222028152,0.85545273,18.486,18.483,0.79878961]
[1688222028461,76.07,18.484,18.47,76.02]
[1688222028660,75.53,18.482,18.471,9.93539848]
[1688222028857,76.07,18.479,18.471,9.93539848]
[1688222029155,75.53,18.481,18.472,9.93539848]
[1688222029356,75.53,18.481,18.475,0.86881981]
[1688222029559,0.74720181,18.478,18.475,0.86881981]
[1688222032160,76.81720181,18.478,18.467,76.07]
[1688222032363,76.07,18.478,18.468,9.93716027]
[1688222032557,76.07,18.474,18.464,75.64]
[1688222032758,75.53,18.471,18.465,9.94039967]
[1688222032963,75.53,18.471,18.46,76.07]
[1688222033161,0.83166183,18.467,18.464,0.78379513]
[1688222033364,0.83166183,18.467,18.465,9.9404961]
[1688222033867,0.83166183,18.467,18.464,0.78379513]
[1688222035054,0.83166183,18.467,18.465,9.94045266]
[1688222035454,0.83166183,18.467,18.464,0.78379513]
[1688222037065,0.83166183,18.467,18.457,75.82]
[1688222037267,0.83166183,18.467,18.458,9.94038545]
[1688222038263,0.83166183,18.467,18.461,0.84717965]
[1688222038567,0.83166183,18.467,18.462,9.94038545]
[1688222043472,0.83166183,18.467,18.461,0.84717965]
[1688222046473,0.83166183,18.467,18.447,379.55002066]
[1688222046474,76.07,18.465,18.454,76.07]
[1688222046675,76.07,18.462,18.455,9.86927827]
[1688222046875,76.07,18.462,18.456,9.86927827]
[1688222047170,76.07,18.462,18.451,75.49]
[1688222047371,76.07,18.462,18.452,9.86908826]
[1688222047578,0.75218985,18.458,18.455,0.84822768]
[1688222047769,0.75218985,18.458,18.456,9.86765981]
[1688222048878,76.07,18.465,18.455,0.84822768]
[1688222048879,133.8806,18.468,18.457,85.49579226]
[1688222049079,58.3506,18.468,18.461,76.07]
[1688222049872,0.73994406,18.466,18.463,0.81719003]
[1688222061692,57.224,18.477,18.465,76.07]
[1688222062492,76.07,18.478,18.465,76.07]
[1688222062683,0.86018493,18.473,18.47,0.78344712]
[1688222066189,0.86018493,18.473,18.458,27.08852]
[1688222066399,76.07,18.472,18.461,76.07]
[1688222067396,0.87002078,18.468,18.465,0.73369874]
[1688222072608,76.07,18.467,18.458,26.72647767]
[1688222072907,75.94,18.465,18.454,76.07]
[1688222073312,75.94,18.465,18.455,9.87619448]
[1688222073810,0.86430142,18.462,18.458,0.89060679]
[1688222080713,76.07,18.468,18.46,75.82]
[1688222080914,76.07,18.471,18.46,75.82]
[1688222081110,76.07,18.471,18.461,9.87527052]
[1688222082017,0.86008104,18.468,18.464,0.80081753]
[1688222082218,0.86371569,18.468,18.464,0.74945718]
[1688222085217,76.93371569,18.468,18.464,0.74945718]
[1688222086614,76.93371569,18.468,18.458,26.8333168]
[1688222086816,76.93371569,18.468,18.459,9.87922043]
[1688222087018,76.93371569,18.468,18.46,9.87922043]
[1688222087315,76.93371569,18.468,18.461,9.87922043]
[1688222087506,76.93371569,18.468,18.462,9.87922043]
[1688222087711,76.93371569,18.468,18.457,75.64]
[1688222087917,76.93371569,18.468,18.458,9.8791485]
[1688222088618,76.93371569,18.468,18.461,0.48810642]
[1688222093420,76.07,18.466,18.461,0.48810642]
[1688222093721,0.86371569,18.468,18.459,75.49]
[1688222093912,76.07,18.473,18.461,76.07]
[1688222094111,76.07,18.473,18.462,9.878475]
[1688222094517,0.87540909,18.469,18.462,9.878475]
[1688222095839,0.87540909,18.469,18.459,75.82]
[1688222096126,0.74960223,18.466,18.459,75.82]
[1688222097019,0.74960223,18.466,18.46,9.88071218]
[1688222097223,0.74960223,18.466,18.462,75.64]
[1688222098927,76.07,18.475,18.464,76.07]
[1688222099227,58.0079,18.477,18.469,76.07]
[1688222100127,0.8929266,18.475,18.471,0.74813624]
[1688222104728,0.8929266,18.475,18.472,75.49]
[1688222104929,54.4112,18.485,18.474,76.07]
[1688222105828,0.82546969,18.481,18.478,0.79633745]
[1688222108133,76.07,18.489,18.478,76.86633745]
[1688222108330,81.85824289,18.488,18.478,76.86633745]
[1688222109233,0.7619528,18.485,18.478,76.86633745]
[1688222113233,211.23798544,18.51,18.478,304.64633745]
[1688222113234,200.0,18.499,18.478,304.64633745]
[1688222113436,76.07,18.496,18.484,75.49]
[1688222113624,81.82438286,18.495,18.484,75.49]
[1688222114329,0.85226613,18.491,18.488,0.77367923]
[1688222119337,276.07,18.499,18.488,76.41367923]
[1688222119537,81.81313817,18.498,18.488,76.41367923]
[1688222120439,0.74545424,18.495,18.488,76.41367923]
[1688222121734,76.07,18.499,18.488,76.41367923]
[1688222121929,76.07,18.5,18.488,76.41367923]
[1688222122140,76.07,18.5,18.488,75.64]
[1688222122743,0.58402679,18.496,18.488,102.68456]
[1688222122948,76.07,18.5,18.492,0.74119398]
[1688222124346,76.07,18.504,18.492,0.74119398]
[1688222124643,76.07,18.504,18.496,0.87091809]
[1688222130244,275.94,18.499,18.496,0.87091809]
[1688222130550,275.94,18.499,18.488,76.07]
[1688222131450,0.74305307,18.495,18.492,0.78504324]
[1688222132645,76.07,18.5,18.492,0.78504324]
[1688222132947,76.07,18.503,18.493,76.07]
[1688222133252,75.53,18.505,18.494,76.07]
[1688222133753,75.53,18.505,18.498,0.80805036]
[1688222140551,76.07,18.507,18.498,0.80805036]
[1688222141155,59.4046,18.508,18.498,0.80805036]
[1688222141453,200.0,18.499,18.491,75.82]
[1688222141661,200.0,18.499,18.489,76.07]
[1688222142648,0.80890653,18.496,18.492,0.74064217]
[1688222143255,0.80890653,18.496,18.486,76.07]
[1688222143458,76.07,18.494,18.483,76.07]
[1688222143659,200.0,18.49,18.48,75.49]
[1688222144256,0.76673299,18.487,18.483,0.7358338]
[1688222170292,0.76673299,18.487,18.473,26.98888337]
[1688222170293,0.76673299,18.487,18.476,82.96]
[1688222170484,82.9,18.485,18.472,83.7]
[1688222170680,58.3039,18.493,18.47,83.24]
[1688222170681,200.0,18.48,18.47,83.24]
[1688222170878,283.7,18.48,18.467,83.7]
[1688222171078,83.7,18.48,18.467,83.7]
[1688222171291,0.77088784,18.475,18.472,0.75291064]
[1688222191912,0.77088784,18.475,18.468,83.7]
[1688222192911,0.77088784,18.475,18.47,0.88428355]
[1688222193811,451.83,18.48,18.462,83.32]
[1688222193812,82.9,18.473,18.462,83.32]
[1688222194914,0.86730297,18.469,18.466,0.75114428]
[1688222198405,83.7,18.479,18.467,83.36]
[1688222199403,0.7436679,18.475,18.471,0.84405575]
[1688222200114,0.7436679,18.475,18.464,83.54]
[1688222200408,83.26,18.477,18.464,83.54]
[1688222201114,0.87818049,18.472,18.469,0.87007628]
[1688222209124,0.87818049,18.472,18.462,82.96]
[1688222209314,83.7,18.474,18.463,9.86837858]
[1688222210229,0.79886008,18.47,18.467,0.62647845]
[1688222215528,0.79886008,18.47,18.46,76.22]
[1688222215724,0.79886008,18.47,18.461,9.87004726]
[1688222222744,76.22,18.465,18.454,76.22]
[1688222222948,304.88,18.471,18.451,75.84]
[1688222222949,200.0,18.46,18.451,75.84]
[1688222223452,76.22,18.459,18.449,55.726]
[1688222223744,0.83942357,18.456,18.447,75.58]
[1688222226345,76.22,18.453,18.442,134.5112]
[1688222226540,0.75153921,18.449,18.443,9.9054527]
[1688222229551,0.75153921,18.449,18.445,76.22]
[1688222230258,0.75153921,18.449,18.442,134.5112]
[1688222230460,0.75153921,18.449,18.443,9.90843515]
[1688222232957,0.75153921,18.449,18.438,76.22]
[1688222233157,76.22,18.446,18.435,76.22]
[1688222233459,0.89275326,18.442,18.436,9.91889187]
[1688222234565,0.89275326,18.442,18.435,76.22]
[1688222238168,0.89275326,18.442,18.434,56.8842]
[1688222242368,200.0,18.44,18.432,76.22]
[1688222242564,200.0,18.44,18.43,27.26521722]
[1688222242565,0.84678123,18.438,18.43,27.26521722]
[1688222242765,76.22,18.437,18.427,55.5343]
[1688222242969,0.84361074,18.434,18.427,55.5343]
[1688222243573,0.84361074,18.434,18.41,79.34656082]
[1688222243764,0.81880388,18.426,18.419,26.71301421]
[1688222243963,0.75454724,18.424,18.417,131.3743]
[1688222244768,0.75454724,18.424,18.423,75.84]
[1688222244973,76.22,18.437,18.43,0.74269558]
[1688222245160,76.22,18.437,18.426,76.22]
[1688222245364,76.22,18.434,18.422,75.84]
[1688222245873,0.86244771,18.43,18.426,0.74189229]
[1688222246065,0.73817865,18.43,18.426,0.76049722]
[1688222246466,0.73817865,18.43,18.422,76.22]
[1688222246668,76.95817865,18.43,18.419,76.22]
[1688222246869,76.22,18.43,18.419,76.22]
[1688222247168,276.22,18.43,18.419,76.22]
[1688222247371,76.22,18.427,18.416,76.22]
[1688222247573,0.83283973,18.423,18.416,76.22]
[1688222249069,0.83283973,18.423,18.419,76.22]
[1688222249376,0.76707391,18.423,18.419,76.22]
[1688222250868,0.76707391,18.423,18.419,83.0]
[1688222251479,83.01,18.434,18.421,83.0]
[1688222251880,82.91,18.437,18.424,82.53]
[1688222252579,0.85729435,18.432,18.429,0.76670587]
[1688222252779,332.64,18.442,18.429,0.76670587]
[1688222252780,82.46,18.445,18.431,83.0]
[1688222252983,82.91,18.447,18.435,83.16]
[1688222253873,0.80418487,18.443,18.439,0.80920409]
[1688222260782,0.80418487,18.443,18.44,83.16]
[1688222260979,83.01,18.455,18.442,83.16]
[1688222261981,0.79180094,18.45,18.447,0.84356976]
[1688222269905,83.16,18.457,18.447,0.84356976]
[1688222270806,0.78541301,18.454,18.447,0.84356976]
[1688222273008,0.78541301,18.454,18.451,83.14]
[1688222273308,200.0,18.471,18.442,358.90577697]
[1688222273309,83.01,18.466,18.453,83.16]
[1688222274103,0.84190667,18.461,18.458,0.81660869]
[1688222280114,0.84190667,18.461,18.45,56.8434]
[1688222280516,83.01,18.459,18.45,56.8434]
[1688222281108,0.83301003,18.456,18.453,0.87418156]
[1688222284816,83.16,18.454,18.443,57.533]
[1688222285410,82.46,18.456,18.444,83.16]
[1688222285611,0.8481384,18.452,18.448,0.77357516]
[1688222292513,55.2461,18.46,18.451,83.0]
[1688222292719,138.4061,18.46,18.448,82.53]
[1688222292919,83.16,18.46,18.448,82.53]
[1688222293424,0.7501526,18.456,18.452,0.80250629]
[1688222293926,0.7501526,18.456,18.446,83.0]
[1688222294116,0.7501526,18.456,18.443,57.533]
[1688222294420,82.91,18.455,18.443,57.533]
[1688222295118,0.77168169,18.451,18.447,0.81825278]
[1688222296319,0.77168169,18.451,18.448,83.16]
[1688222296524,82.91,18.46,18.448,83.16]
[1688222297416,83.89802851,18.456,18.444,82.53]
[1688222297617,83.01,18.456,18.444,82.53]
[1688222298724,0.80453404,18.452,18.448,0.77386628]
[1688222319337,83.16,18.463,18.45,83.16]
[1688222320346,0.77269068,18.458,18.455,0.73173792]
[1688222321345,0.77269068,18.458,18.456,83.16]
[1688222321537,82.46,18.468,18.456,83.16]
[1688222321732,81.98351461,18.467,18.456,83.16]
[1688222322250,83.16,18.465,18.452,83.0]
[1688222322445,0.84412924,18.46,18.457,0.83980214]
[1688222328840,83.16,18.458,18.446,138.2288]
[1688222329044,83.01,18.456,18.446,55.0688]
[1688222329844,0.75463094,18.453,18.449,0.8287498]
[1688222337848,83.21463094,18.453,18.449,0.8287498]
[1688222339652,0.75463094,18.453,18.449,0.8287498]
[1688222344350,207.46680654,18.48,18.449,0.8287498]
[1688222344351,82.91,18.462,18.45,83.16]
[1688222344556,83.16,18.465,18.453,83.14]
[1688222344858,81.98861273,18.464,18.453,83.14]
[1688222345444,0.88116384,18.46,18.457,0.75542168]
[1688222346351,158.30187421,18.459,18.445,76.29]
[1688222346652,76.29,18.456,18.445,76.29]
[1688222347361,0.87641776,18.452,18.449,0.79746704]
[1688222358363,0.87641776,18.452,18.442,82.62]
[1688222359568,0.87641776,18.452,18.445,0.8178598]
[1688222366184,0.87641776,18.452,18.447,82.14]
[1688222367969,0.87641776,18.452,18.445,0.8178598]
[1688222370482,0.87641776,18.452,18.446,82.62]
[1688222375585,140.0924,18.461,18.449,82.57]
[1688222375780,82.01931973,18.46,18.449,82.57]
[1688222376284,82.92,18.465,18.453,82.14]
[1688222376482,81.9949497,18.464,18.453,82.14]
[1688222376687,0.86991755,18.46,18.457,0.85967581]
[1688222388189,82.92,18.458,18.447,54.4246]
[1688222388994,82.92,18.458,18.446,82.57]
[1688222389182,0.86937768,18.454,18.45,0.8466014]
[1688222395695,200.0,18.452,18.436,82.43]
[1688222395901,82.92,18.444,18.432,57.9914]
[1688222396702,0.87997308,18.44,18.436,0.79924786]
[1688222401908,83.13997308,18.44,18.436,0.79924786]
[1688222402205,83.13997308,18.44,18.428,82.14]
[1688222402502,82.92,18.437,18.427,56.7039]
[1688222402704,82.92,18.437,18.425,82.79]
[1688222403214,0.82532274,18.433,18.429,0.66858849]
[1688222428827,75.54,18.44,18.429,76.18858849]
[1688222429127,75.54,18.44,18.429,75.52]
[1688222429936,0.83628811,18.436,18.433,0.75573654]
[1688222433430,76.37628811,18.436,18.425,75.54]
[1688222433737,75.54,18.436,18.425,75.54]
[1688222434439,0.79439261,18.432,18.429,0.73824829]
[1688222447345,275.59439261,18.432,18.429,0.73824829]
[1688222447549,275.59439261,18.432,18.415,75.27002066]
[1688222447550,75.54,18.43,18.418,75.52]
[1688222448043,55.9609,18.431,18.415,58.4363]
[1688222448044,75.54,18.426,18.415,160.66694156]
[1688222448246,75.54,18.426,18.415,75.54]
[1688222448446,0.77500108,18.422,18.415,75.54]
[1688222454750,0.77500108,18.422,18.414,74.84]
[1688222455451,0.77500108,18.422,18.412,75.13]
[1688222455753,0.77787407,18.419,18.412,75.13]
[1688222457852,0.77787407,18.419,18.413,9.96942962]
[1688222458049,0.77787407,18.419,18.415,75.54]
[1688222462058,0.77787407,18.419,18.413,75.13]
[1688222476063,75.54,18.426,18.415,75.13]
[1688222476359,75.54,18.429,18.418,75.52]
[1688222477265,0.83276676,18.425,18.422,0.77890483]
[1688222485856,67.39,18.424,18.422,0.77890483]
[1688222486658,67.84,18.43,18.423,68.05]
[1688222487764,0.89186413,18.428,18.425,0.79608344]
[1688222490372,0.89186413,18.428,18.425,68.66608344]
[1688222490868,0.89186413,18.428,18.425,0.79608344]
[1688222491964,75.56,18.433,18.425,0.79608344]
[1688222492859,0.8652952,18.431,18.425,0.79608344]
[1688222496175,0.8652952,18.431,18.426,75.56]
[1688222496361,55.0557,18.437,18.428,75.56]
[1688222496565,75.16,18.439,18.428,75.56]
[1688222497270,0.75626878,18.435,18.428,75.56]
[1688222497475,0.75626878,18.435,18.432,0.80756383]
[1688222499571,75.16,18.439,18.432,0.80756383]
[1688222500666,0.81899634,18.437,18.432,0.80756383]
[1688222504080,75.56,18.442,18.432,0.80756383]
[1688222504378,75.56,18.442,18.431,75.56]
[1688222505066,0.48184061,18.438,18.435,0.88982341]
[1688222516882,75.56,18.436,18.421,75.56]
[1688222517076,75.22,18.432,18.421,75.56]
[1688222517882,0.82003515,18.428,18.425,0.82893966]
[1688222533399,134.7307,18.433,18.425,0.82893966]
[1688222533901,75.56,18.433,18.425,0.82893966]
[1688222534499,0.55273257,18.431,18.425,0.82893966]
[1688222538708,0.55273257,18.431,18.425,76.38893966]
[1688222540002,75.06,18.441,18.43,75.56]
[1688222540203,75.56,18.444,18.433,74.9]
[1688222541108,75.56,18.444,18.437,0.75960243]
[1688222541505,75.22,18.441,18.437,0.75960243]
[1688222541705,75.22,18.441,18.437,0.87331579]
[1688222545513,75.16,18.439,18.437,0.87331579]
[1688222545818,75.16,18.439,18.425,75.56]
[1688222546113,75.56,18.433,18.422,74.9]
[1688222546716,0.86932331,18.429,18.426,0.87969089]
[1688222568732,75.16,18.435,18.426,0.87969089]
[1688222568929,75.16,18.435,18.424,74.9]
[1688222569830,75.16,18.435,18.428,0.73508779]
[1688222570828,67.99,18.432,18.428,0.73508779]
[1688222571027,67.99,18.432,18.428,0.75197944]
[1688222573034,82.14966176,18.431,18.428,0.75197944]
[1688222573228,67.99,18.429,18.421,67.99]
[1688222573429,67.58,18.427,18.421,67.99]
[1688222574338,0.75670822,18.426,18.422,0.7947999]
[1688222588548,54.9973,18.433,18.423,75.6]
[1688222589655,54.9973,18.433,18.426,0.88882926]
[1688222598263,75.69,18.434,18.426,0.88882926]
[1688222600465,75.16,18.434,18.426,0.88882926]
[1688222600955,56.3051,18.441,18.426,0.88882926]
[1688222600956,75.55,18.431,18.426,0.88882926]
[1688222601155,0.79414287,18.43,18.421,75.55]
[1688222601862,0.79414287,18.43,18.419,56.7026]
[1688222601863,75.55,18.429,18.419,75.23]
[1688222602257,0.79857124,18.426,18.422,0.83605297]
[1688222610664,76.34857124,18.426,18.422,0.83605297]
[1688222613271,0.79857124,18.426,18.422,0.83605297]
[1688222616377,75.55,18.425,18.422,0.83605297]
[1688222621977,0.79857124,18.426,18.422,0.83605297]
[1688222640986,0.79857124,18.426,18.424,67.84]
[1688222641186,67.53,18.43,18.424,67.84]
[1688222641489,67.81,18.433,18.427,67.84]
[1688222641892,67.53,18.434,18.428,68.03]
[1688222642093,82.11173202,18.433,18.429,0.75344619]
[1688222643792,67.81,18.431,18.429,0.75344619]
[1688222643986,67.81,18.431,18.428,0.8627323]
[1688222645792,75.27,18.434,18.428,0.8627323]
[1688222645995,82.11368896,18.433,18.429,0.78721585]
[1688222646191,75.27,18.434,18.429,0.78721585]
[1688222647194,82.15831931,18.433,18.429,0.78721585]
[1688222647390,75.27,18.434,18.429,0.78721585]
[1688222648096,82.15778742,18.433,18.429,0.78721585]
[1688222648488,75.57,18.436,18.429,0.78721585]
[1688222648688,82.15634613,18.435,18.431,0.7514816]
[1688222654404,75.51,18.434,18.431,0.7514816]
[1688222658713,82.15693515,18.433,18.431,0.7514816]
[1688222664617,75.51,18.434,18.431,0.7514816]
[1688222666215,75.51,18.434,18.423,75.57]
[1688222667217,0.73766483,18.43,18.427,0.83319667]
[1688222674231,0.73766483,18.43,18.42,75.57]
[1688222674431,75.57,18.428,18.417,74.97]
[1688222675130,0.802676,18.424,18.421,0.80436428]
[1688222688551,0.802676,18.424,18.417,74.97]
[1688222689449,0.802676,18.424,18.419,0.87082813]
[1688222690548,76.372676,18.424,18.413,75.57]
[1688222690754,75.51,18.422,18.411,75.57]
[1688222690949,82.0461945,18.421,18.411,75.57]
[1688222691644,0.79629158,18.418,18.414,0.88759642]
[1688222695047,0.79629158,18.418,18.415,75.57]
[1688222695355,75.57,18.426,18.415,75.57]
[1688222696156,0.7461593,18.422,18.419,0.76613183]
[1688222702162,0.7461593,18.422,18.412,75.57]
[1688222702368,75.27,18.421,18.41,74.85]
[1688222702866,74.96,18.419,18.408,75.57]
[1688222703063,74.96,18.419,18.412,0.85626903]
[1688222703370,0.750334,18.415,18.412,0.85626903]
[1688222706772,0.750334,18.415,18.407,67.48]
[1688222706773,67.93,18.413,18.407,67.48]
[1688222707570,68.13,18.41,18.408,0.78680746]
[1688222707774,68.13,18.41,18.407,0.81721691]
[1688222710770,0.78990761,18.411,18.407,0.81721691]
[1688222712579,0.78990761,18.411,18.408,75.72]
[1688222712782,75.72,18.422,18.41,75.59]
[1688222713694,0.7690256,18.418,18.414,0.81984878]
[1688222716386,75.09,18.427,18.416,75.59]
[1688222717492,0.88950114,18.423,18.42,0.85335376]
[1688222720988,74.97,18.434,18.422,75.26]
[1688222721493,75.72,18.436,18.426,75.59]
[1688222722093,0.78927207,18.433,18.429,0.87260225]
[1688222722795,59.1278,18.441,18.43,75.72]
[1688222722993,82.15266642,18.44,18.43,75.72]
[1688222723298,82.15266642,18.439,18.43,75.72]
[1688222723488,82.15266642,18.438,18.43,75.72]
[1688222723689,0.84680134,18.436,18.432,0.76629404]
[1688222730603,75.09,18.447,18.435,75.59]
[1688222730802,82.13649082,18.446,18.435,75.59]
[1688222731700,82.13649082,18.446,18.439,0.87972296]
[1688222739017,75.72,18.444,18.439,0.87972296]
[1688222739203,82.13649082,18.443,18.439,0.87972296]
[1688222744512,56.1735,18.448,18.439,0.87972296]
[1688222744714,82.13585951,18.447,18.439,0.87972296]
[1688222748120,82.13585951,18.447,18.44,75.59]
[1688222748322,82.13585951,18.447,18.439,0.87972296]
[1688222748323,75.69,18.456,18.445,75.72]
[1688222748643,82.09518248,18.455,18.449,0.80759144]
[1688222748930,82.09518248,18.455,18.448,75.72]
[1688222748931,75.72,18.459,18.45,0.73516211]
[1688222749135,91.30878623,18.458,18.45,0.73516211]
[1688222749309,81.37775973,18.457,18.45,0.73516211]
[1688222749513,81.37775973,18.456,18.451,75.59]
[1688222749712,81.37775973,18.455,18.452,0.8611941]
[1688222749917,75.69,18.459,18.452,0.89075273]
[1688222750117,81.35874665,18.458,18.452,0.89075273]
[1688222754420,75.69,18.459,18.452,0.89075273]
[1688222754627,75.69,18.463,18.452,76.61075273]
[1688222754819,91.28229178,18.462,18.456,0.79292171]
[1688222755127,91.28229178,18.461,18.456,0.79292171]
[1688222755429,91.28229178,18.46,18.456,0.79292171]
[1688222755626,91.28229178,18.459,18.456,0.79292171]
[1688222755826,75.69,18.463,18.456,0.79292171]
[1688222756026,91.277947,18.462,18.456,0.79292171]
[1688222756222,91.277947,18.461,18.456,0.79292171]
[1688222756422,91.277947,18.46,18.456,0.79292171]
[1688222756621,75.01,18.466,18.456,0.79292171]
[1688222756826,91.26738748,18.465,18.459,0.7408123]
[1688222757027,91.26738748,18.464,18.459,0.7408123]
[1688222757223,9.92778174,18.463,18.459,0.7408123]
[1688222757424,75.01,18.466,18.459,0.7408123]
[1688222757621,91.26822308,18.465,18.459,0.7408123]
[1688222757826,91.26822308,18.464,18.459,0.7408123]
[1688222758027,91.26822308,18.463,18.459,0.7408123]
[1688222758228,75.29,18.468,18.459,0.84577147]
[1688222758427,91.25518766,18.467,18.459,0.84577147]
[1688222758625,91.25518766,18.466,18.459,0.84577147]
[1688222758825,91.25518766,18.465,18.459,0.84577147]
[1688222759028,9.92678028,18.464,18.459,0.84577147]
[1688222759231,75.29,18.468,18.459,0.84577147]
[1688222759528,91.2560486,18.467,18.459,0.84577147]
[1688222759727,91.2560486,18.466,18.459,0.84577147]
[1688222759932,91.2560486,18.465,18.459,0.84577147]
[1688222760135,9.92685002,18.464,18.459,0.84577147]
[1688222760326,75.29,18.468,18.459,0.84577147]
[1688222760523,91.25681361,18.467,18.459,0.84577147]
[1688222760725,91.25681361,18.466,18.459,0.84577147]
[1688222760921,91.25681361,18.465,18.459,0.84577147]
[1688222761132,9.92691356,18.464,18.459,0.84577147]
[1688222761333,75.29,18.468,18.459,0.84577147]
[1688222761631,91.24441258,18.467,18.459,0.84577147]
[1688222761826,91.24441258,18.466,18.459,0.84577147]
[1688222762025,9.92595738,18.465,18.459,0.84577147]
[1688222762232,9.92595738,18.464,18.459,0.84577147]
[1688222762433,75.29,18.468,18.459,0.84577147]
[1688222762640,91.24667215,18.467,18.459,0.84577147]
[1688222762829,91.24667215,18.466,18.459,0.84577147]
[1688222763029,9.92614588,18.465,18.459,0.84577147]
[1688222763233,9.92614588,18.464,18.459,0.84577147]
[1688222763432,75.29,18.468,18.459,0.84577147]
[1688222763731,91.24789922,18.467,18.459,0.84577147]
[1688222763932,91.24789922,18.466,18.459,0.84577147]
[1688222764134,9.9262416,18.465,18.459,0.84577147]
[1688222764430,75.29,18.468,18.459,0.84577147]
[1688222764635,91.23766413,18.467,18.459,0.84577147]
[1688222764929,9.92540344,18.466,18.459,0.84577147]
[1688222765133,9.92540344,18.465,18.459,0.84577147]
[1688222765334,75.29,18.468,18.459,0.84577147]
[1688222765529,91.23836085,18.467,18.461,75.72]
[1688222765734,9.92546225,18.466,18.462,0.77438462]
[1688222765936,9.92546225,18.465,18.462,0.77438462]
[1688222766237,57.787,18.47,18.462,0.77438462]
[1688222766437,91.23807145,18.469,18.462,0.77438462]
[1688222766632,57.787,18.47,18.462,0.77438462]
[1688222766633,91.23807145,18.468,18.462,0.77438462]
[1688222766837,9.92545421,18.467,18.462,0.77438462]
[1688222767040,9.92545421,18.466,18.462,0.77438462]
[1688222767240,9.92545421,18.465,18.462,0.77438462]
[1688222767440,57.787,18.47,18.462,0.77438462]
[1688222767641,91.23865214,18.469,18.462,0.77438462]
[1688222767834,91.23865214,18.468,18.462,0.77438462]
[1688222768035,9.9254993,18.467,18.462,0.77438462]
[1688222768238,9.9254993,18.466,18.462,0.77438462]
[1688222768439,9.9254993,18.465,18.462,0.77438462]
[1688222768638,57.787,18.47,18.462,0.77438462]
[1688222768942,9.92556926,18.469,18.462,0.77438462]
[1688222771441,75.29,18.463,18.453,75.72]
[1688222771642,75.29,18.463,18.43,25.08656082]